[Event "Titled Tuesday Blitz March 07 Early 2023"]
[White "Pulpan, Jakub"]
[Black "Fernandez Garcia, Gumersindo"]
[WhiteFideId "302759"]
[BlackFideId "24516740"]
[WhiteElo "2484"]
[BlackElo "2093"]
[Result "1-0"]
[Round "02"]
[TimeControl "180+2"]
[Date "2023.03.07"]
[WhiteClock "0:00:06"]
[BlackClock "0:00:12"]

1. Nf3 {[%clk 0:03:00]}  Nf6 {[%clk 0:02:59]} 2. b3 {[%clk 0:02:57]}  d6 {[%clk 0:02:55]} 3. d4 {[%clk 0:02:57]}  e5 {[%clk 0:02:55]} 4. dxe5 {[%clk 0:02:58]}  dxe5 {[%clk 0:02:52]} 5. Qxd8+ {[%clk 0:02:58]}  Kxd8 {[%clk 0:02:53]} 6. Nxe5 {[%clk 0:02:59]}  Be6 {[%clk 0:02:52]} 7. e3 {[%clk 0:02:58]}  Bb4+ {[%clk 0:02:51]} 8. Bd2 {[%clk 0:02:57]}  Bxd2+ {[%clk 0:02:49]} 9. Nxd2 {[%clk 0:02:57]}  Nbd7 {[%clk 0:02:50]} 10. Nxd7 {[%clk 0:02:53]}  Nxd7 {[%clk 0:02:50]} 11. Bc4 {[%clk 0:02:53]}  Ke7 {[%clk 0:02:49]} 12. Bxe6 {[%clk 0:02:53]}  Kxe6 {[%clk 0:02:50]} 13. Ke2 {[%clk 0:02:54]}  a5 {[%clk 0:02:47]} 14. a4 {[%clk 0:02:53]}  b6 {[%clk 0:02:46]} 15. Rhd1 {[%clk 0:02:49]}  Ne5 {[%clk 0:02:44]} 16. Nf3 {[%clk 0:02:43]}  Nxf3 {[%clk 0:02:43]} 17. Kxf3 {[%clk 0:02:43]}  h5 {[%clk 0:02:40]} 18. Rd3 {[%clk 0:02:43]}  Rad8 {[%clk 0:02:27]} 19. Rad1 {[%clk 0:02:38]}  Rxd3 {[%clk 0:02:27]} 20. Rxd3 {[%clk 0:02:39]}  Rh6 {[%clk 0:02:25]} 21. h4 {[%clk 0:02:38]}  Ke7 {[%clk 0:02:21]} 22. g3 {[%clk 0:02:32]}  Rf6+ {[%clk 0:02:20]} 23. Ke2 {[%clk 0:02:32]}  Rc6 {[%clk 0:02:19]} 24. c3 {[%clk 0:02:28]}  g6 {[%clk 0:02:16]} 25. e4 {[%clk 0:02:27]}  Rc5 {[%clk 0:02:11]} 26. Ke3 {[%clk 0:02:26]}  Rc6 {[%clk 0:02:11]} 27. f3 {[%clk 0:02:23]}  Re6 {[%clk 0:02:10]} 28. Rd5 {[%clk 0:02:20]}  Rc6 {[%clk 0:02:09]} 29. Kd4 {[%clk 0:02:20]}  Rf6 {[%clk 0:02:09]} 30. f4 {[%clk 0:02:18]}  c6 {[%clk 0:01:59]} 31. Re5+ {[%clk 0:02:16]}  Kd7 {[%clk 0:02:00]} 32. Rg5 {[%clk 0:02:01]}  Rd6+ {[%clk 0:01:57]} 33. Kc4 {[%clk 0:01:57]}  Rd1 {[%clk 0:01:29]} 34. f5 {[%clk 0:01:55]}  Re1 {[%clk 0:01:24]} 35. Kd3 {[%clk 0:01:25]}  Rd1+ {[%clk 0:01:19]} 36. Ke2 {[%clk 0:01:20]}  Rb1 {[%clk 0:01:19]} 37. fxg6 {[%clk 0:01:17]}  fxg6 {[%clk 0:01:20]} 38. Rxg6 {[%clk 0:01:18]}  Rxb3 {[%clk 0:01:20]} 39. Kd3 {[%clk 0:01:18]}  Rb1 {[%clk 0:01:08]} 40. Kd4 {[%clk 0:01:09]}  Ra1 {[%clk 0:01:04]} 41. Ke5 {[%clk 0:01:02]}  Rxa4 {[%clk 0:00:54]} 42. Rg7+ {[%clk 0:01:02]}  Ke8 {[%clk 0:00:54]} 43. Kf5 {[%clk 0:00:55]}  Rc4 {[%clk 0:00:48]} 44. e5 {[%clk 0:00:47]}  Rxc3 {[%clk 0:00:48]} 45. Ke6 {[%clk 0:00:45]}  Kf8 {[%clk 0:00:45]} 46. Rb7 {[%clk 0:00:42]}  b5 {[%clk 0:00:39]} 47. Kd6 {[%clk 0:00:39]}  b4 {[%clk 0:00:31]} 48. Rb8+ {[%clk 0:00:36]}  Kg7 {[%clk 0:00:29]} 49. e6 {[%clk 0:00:33]}  Rd3+ {[%clk 0:00:23]} 50. Ke5 {[%clk 0:00:27]}  Re3+ {[%clk 0:00:16]} 51. Kd6 {[%clk 0:00:25]}  Rd3+ {[%clk 0:00:17]} 52. Ke5 {[%clk 0:00:14]}  Rd5+ {[%clk 0:00:17]} 53. Ke4 {[%clk 0:00:10]}  Kf6 {[%clk 0:00:17]} 54. Rb6 {[%clk 0:00:03]}  Kxe6 {[%clk 0:00:15]} 55. Rxc6+ {[%clk 0:00:03]}  Rd6 {[%clk 0:00:16]} 56. Rc5 {[%clk 0:00:04]}  Rb6 {[%clk 0:00:15]} 57. Rxh5 {[%clk 0:00:04]}  b3 {[%clk 0:00:15]} 58. Rh6+ {[%clk 0:00:04]}  Kd7 {[%clk 0:00:14]} 59. Rxb6 {[%clk 0:00:05]}  a4 {[%clk 0:00:15]} 60. Rb4 {[%clk 0:00:05]}  Kc6 {[%clk 0:00:12]} 61. Rxa4 {[%clk 0:00:05]}  Kb5 {[%clk 0:00:12]} 62. Ra8 {[%clk 0:00:06]} 1-0


[Site "https://www.chess.com"]

[Event "Titled Tuesday Blitz March 07 Early 2023"]
[White "Cherniaiev, Tykhon"]
[Black "Arencibia Monduy, Antonio"]
[WhiteFideId "14182360"]
[BlackFideId "3507939"]
[WhiteElo "2450"]
[BlackElo "2521"]
[Result "1-0"]
[Round "02"]
[TimeControl "180+2"]
[Date "2023.03.07"]
[WhiteClock "0:00:20"]
[BlackClock "0:00:03"]

1. Nf3 {[%clk 0:03:00]}  Nf6 {[%clk 0:02:37]} 2. d4 {[%clk 0:03:00]}  e6 {[%clk 0:02:35]} 3. c4 {[%clk 0:03:01]}  d5 {[%clk 0:02:33]} 4. Nc3 {[%clk 0:03:01]}  Be7 {[%clk 0:02:33]} 5. Bg5 {[%clk 0:03:01]}  Ne4 {[%clk 0:02:32]} 6. Bxe7 {[%clk 0:02:56]}  Qxe7 {[%clk 0:02:31]} 7. cxd5 {[%clk 0:02:57]}  Nxc3 {[%clk 0:02:30]} 8. bxc3 {[%clk 0:02:58]}  exd5 {[%clk 0:02:31]} 9. e3 {[%clk 0:02:59]}  c6 {[%clk 0:02:31]} 10. Be2 {[%clk 0:02:59]}  O-O {[%clk 0:02:30]} 11. O-O {[%clk 0:02:59]}  b6 {[%clk 0:02:25]} 12. c4 {[%clk 0:02:59]}  dxc4 {[%clk 0:02:24]} 13. Bxc4 {[%clk 0:02:59]}  Be6 {[%clk 0:02:24]} 14. Bd3 {[%clk 0:02:57]}  Nd7 {[%clk 0:02:23]} 15. Rc1 {[%clk 0:02:56]}  Rac8 {[%clk 0:02:23]} 16. Qa4 {[%clk 0:02:55]}  c5 {[%clk 0:02:17]} 17. Qxa7 {[%clk 0:02:48]}  Ra8 {[%clk 0:02:15]} 18. Qb7 {[%clk 0:02:48]}  Rfb8 {[%clk 0:02:01]} 19. Qe4 {[%clk 0:02:46]}  Nf6 {[%clk 0:02:00]} 20. Qh4 {[%clk 0:02:46]}  Rxa2 {[%clk 0:01:56]} 21. Bxh7+ {[%clk 0:02:45]}  Kf8 {[%clk 0:01:54]} 22. Bb1 {[%clk 0:02:45]}  Kg8 {[%clk 0:01:40]} 23. Bxa2 {[%clk 0:02:44]}  Bxa2 {[%clk 0:01:40]} 24. dxc5 {[%clk 0:02:45]}  bxc5 {[%clk 0:01:40]} 25. Qg5 {[%clk 0:02:24]}  Rc8 {[%clk 0:01:32]} 26. Rfd1 {[%clk 0:02:23]}  Be6 {[%clk 0:01:31]} 27. h3 {[%clk 0:02:22]}  Qc7 {[%clk 0:01:15]} 28. Qe5 {[%clk 0:02:14]}  Qxe5 {[%clk 0:00:43]} 29. Nxe5 {[%clk 0:02:15]}  Kf8 {[%clk 0:00:40]} 30. Nd3 {[%clk 0:02:07]}  c4 {[%clk 0:00:37]} 31. Nf4 {[%clk 0:02:01]}  Ke7 {[%clk 0:00:31]} 32. Nxe6 {[%clk 0:02:00]}  Kxe6 {[%clk 0:00:29]} 33. Rd4 {[%clk 0:01:59]}  c3 {[%clk 0:00:30]} 34. Rd3 {[%clk 0:01:59]}  Nd5 {[%clk 0:00:29]} 35. Rc2 {[%clk 0:01:22]}  Ke5 {[%clk 0:00:18]} 36. f4+ {[%clk 0:01:05]}  Ke6 {[%clk 0:00:17]} 37. Kf2 {[%clk 0:00:59]}  f5 {[%clk 0:00:17]} 38. g4 {[%clk 0:00:55]}  g6 {[%clk 0:00:17]} 39. Kf3 {[%clk 0:00:55]}  Rc4 {[%clk 0:00:15]} 40. Rd4 {[%clk 0:00:43]}  Rc5 {[%clk 0:00:13]} 41. e4 {[%clk 0:00:41]}  fxe4+ {[%clk 0:00:13]} 42. Rxe4+ {[%clk 0:00:42]}  Kd6 {[%clk 0:00:11]} 43. Rd4 {[%clk 0:00:42]}  Kc6 {[%clk 0:00:10]} 44. Ke4 {[%clk 0:00:29]}  Nf6+ {[%clk 0:00:09]} 45. Kd3 {[%clk 0:00:26]}  Nd5 {[%clk 0:00:08]} 46. Rc4 {[%clk 0:00:17]}  Rxc4 {[%clk 0:00:04]} 47. Kxc4 {[%clk 0:00:18]}  Ne3+ {[%clk 0:00:03]} 48. Kxc3 {[%clk 0:00:18]}  Nxc2 {[%clk 0:00:03]} 49. Kxc2 {[%clk 0:00:19]}  Kd5 {[%clk 0:00:03]} 50. Kd3 {[%clk 0:00:20]} 1-0


[Site "https://www.chess.com"]

[Event "Titled Tuesday Blitz March 07 Early 2023"]
[White "Sharapov, Evgeny"]
[Black "Lortkipanidze, Nodar"]
[WhiteFideId "14103133"]
[BlackFideId "13604058"]
[WhiteElo "2367"]
[BlackElo "2336"]
[Result "1-0"]
[Round "02"]
[TimeControl "180+2"]
[Date "2023.03.07"]
[WhiteClock "0:00:13"]
[BlackClock "0:00:29"]

1. e4 {[%clk 0:03:00]}  c5 {[%clk 0:02:59]} 2. Nf3 {[%clk 0:02:59]}  d6 {[%clk 0:02:59]} 3. d4 {[%clk 0:03:00]}  cxd4 {[%clk 0:03:00]} 4. Nxd4 {[%clk 0:03:00]}  Nf6 {[%clk 0:03:01]} 5. f3 {[%clk 0:03:00]}  g6 {[%clk 0:02:58]} 6. c4 {[%clk 0:03:00]}  Bg7 {[%clk 0:02:58]} 7. Nc3 {[%clk 0:03:00]}  O-O {[%clk 0:02:59]} 8. Be3 {[%clk 0:03:01]}  Nc6 {[%clk 0:03:00]} 9. Be2 {[%clk 0:03:01]}  Bd7 {[%clk 0:03:00]} 10. O-O {[%clk 0:03:01]}  Nxd4 {[%clk 0:03:01]} 11. Bxd4 {[%clk 0:03:01]}  Bc6 {[%clk 0:03:01]} 12. Qd2 {[%clk 0:03:01]}  Nd7 {[%clk 0:03:02]} 13. Be3 {[%clk 0:03:02]}  Re8 {[%clk 0:02:58]} 14. b4 {[%clk 0:02:58]}  b6 {[%clk 0:02:57]} 15. Rac1 {[%clk 0:02:56]}  Rc8 {[%clk 0:02:56]} 16. Rfd1 {[%clk 0:02:56]}  Qc7 {[%clk 0:02:50]} 17. Nd5 {[%clk 0:02:55]}  Qb8 {[%clk 0:02:50]} 18. Bg5 {[%clk 0:02:49]}  Kf8 {[%clk 0:02:23]} 19. h4 {[%clk 0:02:46]}  Ne5 {[%clk 0:02:12]} 20. h5 {[%clk 0:02:31]}  b5 {[%clk 0:02:07]} 21. h6 {[%clk 0:02:17]}  Bh8 {[%clk 0:02:06]} 22. f4 {[%clk 0:02:17]}  Nxc4 {[%clk 0:02:04]} 23. Bxc4 {[%clk 0:02:08]}  bxc4 {[%clk 0:02:04]} 24. Rxc4 {[%clk 0:02:07]}  Bxd5 {[%clk 0:02:01]} 25. Qxd5 {[%clk 0:02:00]}  Qb6+ {[%clk 0:01:49]} 26. Kh2 {[%clk 0:01:53]}  Rxc4 {[%clk 0:01:48]} 27. Qxc4 {[%clk 0:01:53]}  Qf2 {[%clk 0:01:48]} 28. Rf1 {[%clk 0:01:22]}  Qd2 {[%clk 0:01:41]} 29. Bh4 {[%clk 0:01:02]}  Bd4 {[%clk 0:01:41]} 30. Bg3 {[%clk 0:00:53]}  Qc3 {[%clk 0:01:22]} 31. Qxc3 {[%clk 0:00:52]}  Bxc3 {[%clk 0:01:22]} 32. b5 {[%clk 0:00:53]}  Bd4 {[%clk 0:01:20]} 33. Rc1 {[%clk 0:00:51]}  Bc5 {[%clk 0:01:20]} 34. a4 {[%clk 0:00:49]}  f5 {[%clk 0:01:19]} 35. e5 {[%clk 0:00:47]}  Kf7 {[%clk 0:01:18]} 36. Rc2 {[%clk 0:00:38]}  Ke6 {[%clk 0:01:13]} 37. exd6 {[%clk 0:00:38]}  Bxd6 {[%clk 0:01:08]} 38. Rc6 {[%clk 0:00:34]}  Kd7 {[%clk 0:01:00]} 39. Ra6 {[%clk 0:00:31]}  Bb8 {[%clk 0:01:00]} 40. Bf2 {[%clk 0:00:29]}  Bxf4+ {[%clk 0:00:59]} 41. g3 {[%clk 0:00:29]}  Bd6 {[%clk 0:00:56]} 42. Rxa7+ {[%clk 0:00:28]}  Ke6 {[%clk 0:00:54]} 43. a5 {[%clk 0:00:27]}  Kd5 {[%clk 0:00:53]} 44. a6 {[%clk 0:00:26]}  f4 {[%clk 0:00:48]} 45. gxf4 {[%clk 0:00:25]}  g5 {[%clk 0:00:49]} 46. Kg2 {[%clk 0:00:23]}  gxf4 {[%clk 0:00:49]} 47. b6 {[%clk 0:00:21]}  Rg8+ {[%clk 0:00:48]} 48. Kf1 {[%clk 0:00:21]}  Kc6 {[%clk 0:00:46]} 49. b7 {[%clk 0:00:20]}  Rb8 {[%clk 0:00:25]} 50. Ra8 {[%clk 0:00:19]}  Kc7 {[%clk 0:00:26]} 51. Ba7 {[%clk 0:00:13]}  Rxb7 {[%clk 0:00:24]} 52. axb7 {[%clk 0:00:13]}  Kxb7 {[%clk 0:00:25]} 53. Rh8 {[%clk 0:00:13]}  Kxa7 {[%clk 0:00:26]} 54. Rxh7 {[%clk 0:00:13]}  Kb6 {[%clk 0:00:27]} 55. Rf7 {[%clk 0:00:12]}  Be5 {[%clk 0:00:26]} 56. h7 {[%clk 0:00:12]}  Kc5 {[%clk 0:00:25]} 57. Rf5 {[%clk 0:00:12]}  Kd4 {[%clk 0:00:25]} 58. Rxe5 {[%clk 0:00:12]}  Kxe5 {[%clk 0:00:26]} 59. h8=Q+ {[%clk 0:00:12]}  Ke4 {[%clk 0:00:27]} 60. Kf2 {[%clk 0:00:12]}  e5 {[%clk 0:00:28]} 61. Qh7+ {[%clk 0:00:12]}  Kd4 {[%clk 0:00:28]} 62. Kf3 {[%clk 0:00:13]}  e4+ {[%clk 0:00:29]} 63. Qxe4+ {[%clk 0:00:13]} 1-0


[Site "https://www.chess.com"]

[Event "Titled Tuesday Blitz March 07 Early 2023"]
[White "Nasuta, Grzegorz"]
[Black "Petukhov, Dmitry"]
[WhiteFideId "1141686"]
[BlackFideId "4142748"]
[WhiteElo "2449"]
[BlackElo "2311"]
[Result "0-1"]
[Round "02"]
[TimeControl "180+2"]
[Date "2023.03.07"]
[WhiteClock "0:01:12"]
[BlackClock "0:00:32"]

1. e4 {[%clk 0:03:00]}  c5 {[%clk 0:02:59]} 2. Nf3 {[%clk 0:03:00]}  d6 {[%clk 0:02:59]} 3. d4 {[%clk 0:02:59]}  cxd4 {[%clk 0:03:00]} 4. Nxd4 {[%clk 0:03:00]}  Nf6 {[%clk 0:03:00]} 5. Nc3 {[%clk 0:03:00]}  Nc6 {[%clk 0:03:01]} 6. f3 {[%clk 0:03:00]}  e5 {[%clk 0:02:59]} 7. Nb3 {[%clk 0:03:00]}  Be7 {[%clk 0:02:57]} 8. Be3 {[%clk 0:03:00]}  O-O {[%clk 0:02:57]} 9. Qd2 {[%clk 0:02:59]}  Be6 {[%clk 0:02:51]} 10. O-O-O {[%clk 0:02:58]}  a5 {[%clk 0:02:42]} 11. Bb5 {[%clk 0:02:58]}  Qc7 {[%clk 0:02:05]} 12. Kb1 {[%clk 0:02:55]}  Rfc8 {[%clk 0:02:03]} 13. g4 {[%clk 0:02:22]}  Nd7 {[%clk 0:01:46]} 14. Nd5 {[%clk 0:02:20]}  Bxd5 {[%clk 0:01:39]} 15. exd5 {[%clk 0:02:21]}  a4 {[%clk 0:01:27]} 16. Nc1 {[%clk 0:02:17]}  Nd4 {[%clk 0:01:23]} 17. Bxd4 {[%clk 0:02:17]}  exd4 {[%clk 0:01:24]} 18. Bxd7 {[%clk 0:02:07]}  Qxd7 {[%clk 0:01:24]} 19. a3 {[%clk 0:02:08]}  Bf6 {[%clk 0:01:20]} 20. Nd3 {[%clk 0:02:07]}  Rc4 {[%clk 0:01:15]} 21. g5 {[%clk 0:02:06]}  Be7 {[%clk 0:01:12]} 22. Qf4 {[%clk 0:01:59]}  Rac8 {[%clk 0:01:08]} 23. Nb4 {[%clk 0:01:59]}  d3 {[%clk 0:00:58]} 24. Qd2 {[%clk 0:01:13]}  dxc2+ {[%clk 0:00:58]} 25. Nxc2 {[%clk 0:01:14]}  Rxc2 {[%clk 0:00:59]} 26. Qxc2 {[%clk 0:01:14]}  Rxc2 {[%clk 0:00:59]} 27. Kxc2 {[%clk 0:01:15]}  Bxg5 {[%clk 0:00:57]} 28. Kb1 {[%clk 0:01:15]}  h6 {[%clk 0:00:57]} 29. Rhe1 {[%clk 0:01:15]}  Bf4 {[%clk 0:00:56]} 30. Re4 {[%clk 0:01:15]}  Bxh2 {[%clk 0:00:53]} 31. f4 {[%clk 0:01:15]}  Qf5 {[%clk 0:00:51]} 32. Rd4 {[%clk 0:01:15]}  Bxf4 {[%clk 0:00:50]} 33. Ka2 {[%clk 0:01:16]}  Be5 {[%clk 0:00:49]} 34. Rxa4 {[%clk 0:01:16]}  h5 {[%clk 0:00:42]} 35. Rab4 {[%clk 0:01:15]}  g5 {[%clk 0:00:41]} 36. Re2 {[%clk 0:01:15]}  Qf3 {[%clk 0:00:38]} 37. Rd2 {[%clk 0:01:15]}  Bf4 {[%clk 0:00:37]} 38. Rdd4 {[%clk 0:01:13]}  h4 {[%clk 0:00:37]} 39. Rb3 {[%clk 0:01:12]}  Qg2 {[%clk 0:00:32]} 0-1


[Site "https://www.chess.com"]

[Event "Titled Tuesday Blitz March 07 Early 2023"]
[White "Aradhya, Garg"]
[Black "Kislov, Oleg"]
[WhiteFideId "25006746"]
[BlackFideId "13503774"]
[WhiteElo "2263"]
[BlackElo "2186"]
[Result "1/2-1/2"]
[Round "02"]
[TimeControl "180+2"]
[Date "2023.03.07"]
[WhiteClock "0:00:15"]
[BlackClock "0:00:07"]

1. d4 {[%clk 0:03:00]}  Nf6 {[%clk 0:02:58]} 2. c4 {[%clk 0:03:01]}  e6 {[%clk 0:02:58]} 3. Nf3 {[%clk 0:03:02]}  d5 {[%clk 0:02:58]} 4. Nc3 {[%clk 0:03:02]}  Bb4 {[%clk 0:02:58]} 5. cxd5 {[%clk 0:03:01]}  exd5 {[%clk 0:02:57]} 6. Bg5 {[%clk 0:03:02]}  h6 {[%clk 0:02:58]} 7. Bh4 {[%clk 0:03:02]}  g5 {[%clk 0:02:57]} 8. Bg3 {[%clk 0:03:02]}  Ne4 {[%clk 0:02:57]} 9. Nd2 {[%clk 0:03:02]}  Nxc3 {[%clk 0:02:42]} 10. bxc3 {[%clk 0:03:01]}  Bd6 {[%clk 0:02:39]} 11. e3 {[%clk 0:02:53]}  c6 {[%clk 0:02:36]} 12. Bd3 {[%clk 0:02:53]}  Be6 {[%clk 0:02:35]} 13. a4 {[%clk 0:02:49]}  Qc7 {[%clk 0:02:28]} 14. Rb1 {[%clk 0:02:45]}  b6 {[%clk 0:02:21]} 15. O-O {[%clk 0:02:36]}  Nd7 {[%clk 0:02:18]} 16. e4 {[%clk 0:02:35]}  O-O-O {[%clk 0:01:50]} 17. e5 {[%clk 0:01:53]}  Be7 {[%clk 0:01:49]} 18. Qe2 {[%clk 0:01:54]}  h5 {[%clk 0:01:44]} 19. h3 {[%clk 0:01:41]}  h4 {[%clk 0:01:42]} 20. Bh2 {[%clk 0:01:41]}  Rdg8 {[%clk 0:01:33]} 21. f3 {[%clk 0:01:41]}  c5 {[%clk 0:01:33]} 22. a5 {[%clk 0:01:27]}  c4 {[%clk 0:01:25]} 23. axb6 {[%clk 0:01:26]}  cxd3 {[%clk 0:01:17]} 24. b7+ {[%clk 0:01:26]}  Qxb7 {[%clk 0:01:09]} 25. Qxd3 {[%clk 0:01:27]}  Nb6 {[%clk 0:01:09]} 26. f4 {[%clk 0:01:26]}  gxf4 {[%clk 0:01:07]} 27. Bxf4 {[%clk 0:01:27]}  Kb8 {[%clk 0:00:53]} 28. Rb2 {[%clk 0:01:20]}  Rc8 {[%clk 0:00:53]} 29. Be3 {[%clk 0:01:14]}  Rhg8 {[%clk 0:00:50]} 30. Nf3 {[%clk 0:01:12]}  Bxh3 {[%clk 0:00:45]} 31. e6 {[%clk 0:01:12]}  Bxe6 {[%clk 0:00:43]} 32. Bf4+ {[%clk 0:01:12]}  Ka8 {[%clk 0:00:42]} 33. Ra1 {[%clk 0:01:08]}  h3 {[%clk 0:00:39]} 34. g3 {[%clk 0:01:07]}  Rgd8 {[%clk 0:00:34]} 35. Rba2 {[%clk 0:00:51]}  Bd6 {[%clk 0:00:32]} 36. Kh2 {[%clk 0:00:46]}  Bxf4 {[%clk 0:00:31]} 37. gxf4 {[%clk 0:00:47]}  Qb8 {[%clk 0:00:30]} 38. Rxa7+ {[%clk 0:00:16]}  Qxa7 {[%clk 0:00:31]} 39. Rxa7+ {[%clk 0:00:16]}  Kxa7 {[%clk 0:00:32]} 40. f5 {[%clk 0:00:17]}  Bd7 {[%clk 0:00:30]} 41. Ne5 {[%clk 0:00:17]}  Be8 {[%clk 0:00:28]} 42. Kxh3 {[%clk 0:00:17]}  Nc4 {[%clk 0:00:26]} 43. f6 {[%clk 0:00:16]}  Nxe5 {[%clk 0:00:24]} 44. dxe5 {[%clk 0:00:17]}  Rc4 {[%clk 0:00:22]} 45. Kg3 {[%clk 0:00:17]}  Bb5 {[%clk 0:00:21]} 46. Qe3+ {[%clk 0:00:16]}  Kb7 {[%clk 0:00:20]} 47. e6 {[%clk 0:00:16]}  Re4 {[%clk 0:00:18]} 48. Qc5 {[%clk 0:00:16]}  Rg8+ {[%clk 0:00:13]} 49. Kf2 {[%clk 0:00:15]}  Rxe6 {[%clk 0:00:12]} 50. Qxb5+ {[%clk 0:00:14]}  Kc7 {[%clk 0:00:12]} 51. Qc5+ {[%clk 0:00:15]}  Kb8 {[%clk 0:00:09]} 52. Qb5+ {[%clk 0:00:14]}  Kc7 {[%clk 0:00:09]} 53. Qc5+ {[%clk 0:00:15]}  Kb8 {[%clk 0:00:07]} 54. Qb5+ {[%clk 0:00:15]}  Kc7 {[%clk 0:00:07]} 1/2-1/2


[Site "https://www.chess.com"]

[Event "Titled Tuesday Blitz March 07 Early 2023"]
[White "Fawzy, Adham"]
[Black "Wagner, Dennis"]
[WhiteFideId "10613129"]
[BlackFideId "24650684"]
[WhiteElo "2539"]
[BlackElo "2470"]
[Result "0-1"]
[Round "02"]
[TimeControl "180+2"]
[Date "2023.03.07"]
[WhiteClock "0:00:04"]
[BlackClock "0:01:09"]

1. e4 {[%clk 0:03:00]}  c5 {[%clk 0:02:34]} 2. Nf3 {[%clk 0:02:58]}  Nc6 {[%clk 0:02:27]} 3. Bb5 {[%clk 0:02:57]}  e6 {[%clk 0:02:27]} 4. O-O {[%clk 0:02:42]}  Nge7 {[%clk 0:02:27]} 5. d4 {[%clk 0:02:40]}  cxd4 {[%clk 0:02:28]} 6. Nxd4 {[%clk 0:02:40]}  Ng6 {[%clk 0:02:28]} 7. Be2 {[%clk 0:02:35]}  Be7 {[%clk 0:02:24]} 8. c4 {[%clk 0:02:34]}  O-O {[%clk 0:02:24]} 9. Nc3 {[%clk 0:02:32]}  b6 {[%clk 0:02:24]} 10. Nb3 {[%clk 0:02:29]}  Bb7 {[%clk 0:02:24]} 11. Be3 {[%clk 0:02:20]}  Rc8 {[%clk 0:02:23]} 12. Rc1 {[%clk 0:01:56]}  Nce5 {[%clk 0:02:07]} 13. Nd2 {[%clk 0:01:05]}  Bc5 {[%clk 0:02:04]} 14. Bxc5 {[%clk 0:00:56]}  bxc5 {[%clk 0:02:05]} 15. f4 {[%clk 0:00:53]}  Nc6 {[%clk 0:02:06]} 16. Bd3 {[%clk 0:00:48]}  d6 {[%clk 0:02:02]} 17. g3 {[%clk 0:00:46]}  Nd4 {[%clk 0:01:44]} 18. Nf3 {[%clk 0:00:44]}  Qb6 {[%clk 0:01:34]} 19. b3 {[%clk 0:00:24]}  f5 {[%clk 0:01:34]} 20. Qe1 {[%clk 0:00:06]}  Rce8 {[%clk 0:01:24]} 21. Nxd4 {[%clk 0:00:03]}  cxd4 {[%clk 0:01:24]} 22. Nb5 {[%clk 0:00:04]}  fxe4 {[%clk 0:01:12]} 23. Bxe4 {[%clk 0:00:05]}  d3+ {[%clk 0:01:12]} 24. Rf2 {[%clk 0:00:04]}  d2 {[%clk 0:01:09]} 0-1


[Site "https://www.chess.com"]

[Event "Titled Tuesday Blitz March 07 Early 2023"]
[White "Goltsev, Dmitry"]
[Black "Andreev, Konstantin"]
[WhiteFideId "24176710"]
[BlackFideId "24239305"]
[WhiteElo "2336"]
[BlackElo "2106"]
[Result "0-1"]
[Round "02"]
[TimeControl "180+2"]
[Date "2023.03.07"]
[WhiteClock "0:00:16"]
[BlackClock "0:00:11"]

1. e4 {[%clk 0:03:00]}  c5 {[%clk 0:03:00]} 2. Nf3 {[%clk 0:02:59]}  e6 {[%clk 0:03:00]} 3. d4 {[%clk 0:02:59]}  cxd4 {[%clk 0:03:01]} 4. Nxd4 {[%clk 0:03:00]}  Nc6 {[%clk 0:03:02]} 5. Nc3 {[%clk 0:02:59]}  Qc7 {[%clk 0:03:02]} 6. Be2 {[%clk 0:02:56]}  Nf6 {[%clk 0:03:00]} 7. Be3 {[%clk 0:02:56]}  a6 {[%clk 0:03:01]} 8. O-O {[%clk 0:02:54]}  b5 {[%clk 0:03:01]} 9. a3 {[%clk 0:02:53]}  Be7 {[%clk 0:03:00]} 10. f4 {[%clk 0:02:49]}  d6 {[%clk 0:03:00]} 11. Bf3 {[%clk 0:02:48]}  Bb7 {[%clk 0:02:59]} 12. g4 {[%clk 0:02:41]}  Nxd4 {[%clk 0:02:58]} 13. Qxd4 {[%clk 0:02:40]}  e5 {[%clk 0:02:58]} 14. fxe5 {[%clk 0:02:37]}  dxe5 {[%clk 0:02:58]} 15. Qd2 {[%clk 0:02:35]}  Rd8 {[%clk 0:02:46]} 16. Qf2 {[%clk 0:02:32]}  O-O {[%clk 0:02:46]} 17. Rad1 {[%clk 0:02:27]}  Qc8 {[%clk 0:02:38]} 18. h3 {[%clk 0:02:21]}  Qc4 {[%clk 0:02:25]} 19. Qg2 {[%clk 0:02:09]}  Bc5 {[%clk 0:02:12]} 20. Bxc5 {[%clk 0:02:07]}  Qxc5+ {[%clk 0:02:12]} 21. Kh1 {[%clk 0:02:07]}  Nd7 {[%clk 0:02:10]} 22. Qd2 {[%clk 0:02:00]}  Qc8 {[%clk 0:02:00]} 23. Qd6 {[%clk 0:01:49]}  Rfe8 {[%clk 0:01:59]} 24. Bg2 {[%clk 0:01:29]}  Nc5 {[%clk 0:01:40]} 25. Qb6 {[%clk 0:01:28]}  Rxd1 {[%clk 0:00:55]} 26. Rxd1 {[%clk 0:01:29]}  Qc6 {[%clk 0:00:52]} 27. Rd8 {[%clk 0:01:16]}  Kf8 {[%clk 0:00:52]} 28. Qa5 {[%clk 0:01:02]}  Ne6 {[%clk 0:00:47]} 29. Rxe8+ {[%clk 0:00:56]}  Kxe8 {[%clk 0:00:45]} 30. a4 {[%clk 0:00:49]}  bxa4 {[%clk 0:00:40]} 31. Qb4 {[%clk 0:00:46]}  Nd4 {[%clk 0:00:37]} 32. Nd5 {[%clk 0:00:44]}  Qd7 {[%clk 0:00:26]} 33. c4 {[%clk 0:00:42]}  Ne6 {[%clk 0:00:15]} 34. Bf3 {[%clk 0:00:35]}  f6 {[%clk 0:00:15]} 35. Bd1 {[%clk 0:00:32]}  Kf7 {[%clk 0:00:14]} 36. Bxa4 {[%clk 0:00:31]}  Bc6 {[%clk 0:00:09]} 37. Bxc6 {[%clk 0:00:29]}  Qxc6 {[%clk 0:00:10]} 38. Qe7+ {[%clk 0:00:29]}  Kg6 {[%clk 0:00:10]} 39. b3 {[%clk 0:00:25]}  Nd4 {[%clk 0:00:07]} 40. Qd8 {[%clk 0:00:19]}  Kh6 {[%clk 0:00:06]} 41. h4 {[%clk 0:00:18]}  Qe6 {[%clk 0:00:04]} 42. g5+ {[%clk 0:00:14]}  Kh5 {[%clk 0:00:04]} 43. Nf4+ {[%clk 0:00:02]}  exf4 {[%clk 0:00:03]} 44. Qxd4 {[%clk 0:00:03]}  f3 {[%clk 0:00:03]} 45. Qf2 {[%clk 0:00:02]}  Qh3+ {[%clk 0:00:03]} 46. Kg1 {[%clk 0:00:03]}  Qg4+ {[%clk 0:00:04]} 47. Kh2 {[%clk 0:00:03]}  fxg5 {[%clk 0:00:04]} 48. e5 {[%clk 0:00:03]}  Qf4+ {[%clk 0:00:03]} 49. Qg3 {[%clk 0:00:02]}  f2 {[%clk 0:00:03]} 50. Qxf4 {[%clk 0:00:02]}  gxf4 {[%clk 0:00:03]} 51. Kg2 {[%clk 0:00:03]}  Kg6 {[%clk 0:00:04]} 52. Kxf2 {[%clk 0:00:03]}  Kf5 {[%clk 0:00:05]} 53. Kf3 {[%clk 0:00:04]}  Kxe5 {[%clk 0:00:05]} 54. h5 {[%clk 0:00:04]}  a5 {[%clk 0:00:05]} 55. Kf2 {[%clk 0:00:03]}  g6 {[%clk 0:00:05]} 56. hxg6 {[%clk 0:00:03]}  hxg6 {[%clk 0:00:06]} 57. Ke2 {[%clk 0:00:04]}  g5 {[%clk 0:00:07]} 58. Kf3 {[%clk 0:00:05]}  Kf5 {[%clk 0:00:07]} 59. Kf2 {[%clk 0:00:05]}  g4 {[%clk 0:00:08]} 60. Kg2 {[%clk 0:00:06]}  Ke4 {[%clk 0:00:09]} 61. Kf2 {[%clk 0:00:06]}  f3 {[%clk 0:00:09]} 62. Kf1 {[%clk 0:00:06]}  g3 {[%clk 0:00:09]} 63. Kg1 {[%clk 0:00:06]}  Kd4 {[%clk 0:00:10]} 64. Kf1 {[%clk 0:00:06]}  Kc5 {[%clk 0:00:10]} 65. Kg1 {[%clk 0:00:06]}  a4 {[%clk 0:00:10]} 66. bxa4 {[%clk 0:00:06]}  Kxc4 {[%clk 0:00:11]} 67. a5 {[%clk 0:00:07]}  Kb5 {[%clk 0:00:11]} 68. a6 {[%clk 0:00:08]}  Kxa6 {[%clk 0:00:12]} 69. Kh1 {[%clk 0:00:09]}  Kb5 {[%clk 0:00:12]} 70. Kg1 {[%clk 0:00:10]}  Kc4 {[%clk 0:00:13]} 71. Kh1 {[%clk 0:00:11]}  Kd3 {[%clk 0:00:14]} 72. Kg1 {[%clk 0:00:12]}  Ke3 {[%clk 0:00:14]} 73. Kh1 {[%clk 0:00:12]}  f2 {[%clk 0:00:14]} 74. Kg2 {[%clk 0:00:13]}  Ke2 {[%clk 0:00:15]} 75. Kh3 {[%clk 0:00:13]}  f1=Q+ {[%clk 0:00:14]} 76. Kh4 {[%clk 0:00:14]}  g2 {[%clk 0:00:14]} 77. Kh5 {[%clk 0:00:15]}  g1=Q {[%clk 0:00:13]} 78. Kh4 {[%clk 0:00:16]}  Qf4+ {[%clk 0:00:11]} 79. Kh3 {[%clk 0:00:16]}  Qfh2# {[%clk 0:00:11]} 0-1


[Site "https://www.chess.com"]